bitfinex-derivatives/quotes_ETHF0:USTF0_20251003
["timestamp","ask_amount","ask_price","bid_price","bid_amount"]
[1759522303962,0.7771,4501.2,4501.1,0.221]
[1759522304158,0.7771,4501.1,4501.0,3.2078]
[1759522304558,0.7771,4501.1,4501.0,3.4288]
[1759522305259,0.9004,4500.5,4500.4,3.4288]
[1759522305457,0.4421,4500.1,4500.0,0.54995688]
[1759522305661,0.7771,4500.1,4500.0,0.76875688]
[1759522306759,0.7771,4500.1,4500.0,0.22305688]
[1759522307667,0.7771,4500.1,4500.0,0.76875688]
[1759522307864,0.7771,4500.1,4500.0,0.44185688]
[1759522310370,0.7771,4500.1,4500.0,0.00205688]
[1759522310670,0.1233,4501.0,4500.4,0.4398]
[1759522310974,1.30003,4501.0,4500.9,0.221]
[1759522312166,1.30003,4501.0,4500.9,0.5479]
[1759522312669,0.9004,4501.0,4500.9,0.5479]
[1759522313362,0.7771,4501.0,4500.9,0.7667]
[1759522315271,0.7771,4501.0,4500.9,0.221]
[1759522315478,0.7771,4501.0,4500.6,0.208]
[1759522315479,0.4421,4500.7,4500.6,0.429]
[1759522315670,0.7771,4500.7,4500.6,0.429]
[1759522315867,0.7771,4500.7,4500.6,0.9747]
[1759522316073,3.5428,4501.2,4500.6,0.9747]
[1759522316272,3.4256,4501.2,4501.1,0.7667]
[1759522316775,0.4583,4501.5,4501.1,0.9907]
[1759522316776,0.335,4501.5,4501.1,0.9907]
[1759522316972,0.5528,4501.5,4501.4,0.7667]
[1759522317172,0.7771,4501.5,4501.4,0.7667]
[1759522317469,1.29998,4501.5,4501.4,0.221]
[1759522317775,0.335,4501.5,4501.2,0.3269]
[1759522318081,0.2178,4501.3,4501.2,0.4398]
[1759522318675,0.5528,4501.3,4501.2,0.7667]
[1759522318977,0.7771,4501.3,4501.2,0.7667]
[1759522319669,0.84171,4501.2,4501.1,0.224]
[1759522319977,1.17671,4501.2,4501.1,0.445]
[1759522320271,0.2178,4501.2,4501.1,0.9907]
[1759522320476,0.7771,4501.7,4501.6,0.7667]
[1759522321076,0.84167,4501.6,4501.5,0.224]
[1759522321278,1.17667,4501.6,4501.5,0.224]
[1759522321773,0.1233,4501.5,4501.1,0.445]
[1759522321975,0.4421,4501.2,4501.1,0.9907]
[1759522322171,3.21040182,4501.8,4501.7,0.7477]
[1759522322369,0.00260182,4501.8,4501.7,1.37126]
[1759522322977,0.00260182,4501.8,4501.7,6.37126]
[1759522324171,0.00260182,4501.8,4501.7,0.9717]
[1759522324371,0.22190182,4501.8,4501.7,0.9717]
[1759522324577,0.53740182,4501.8,4501.7,0.9717]
[1759522325976,0.00260182,4501.8,4501.7,0.9717]
[1759522331482,0.00260182,4501.8,4501.7,1.37126]
[1759522335379,0.3155,4502.7,4502.6,0.2047]
[1759522335584,0.2193,4502.7,4502.6,0.9717]
[1759522336182,0.3155,4503.1,4502.6,0.634]
[1759522336385,0.02392091,4502.9,4502.8,0.41]
[1759522336594,0.02392091,4502.9,4502.8,0.9717]
[1759522337082,0.02392091,4502.9,4502.8,1.37117]
[1759522337284,0.02392091,4502.9,4502.8,6.37117]
[1759522337786,0.02392091,4502.9,4502.8,6.37858431]
[1759522337982,0.02392091,4502.9,4502.8,6.15458431]
[1759522338182,0.02392091,4502.9,4502.8,6.37858431]
[1759522338482,0.02392091,4502.9,4502.8,8.15774081]
[1759522338675,0.77772091,4502.9,4502.8,1.15458431]
[1759522338875,0.77772091,4502.9,4502.8,1.37858431]
[1759522339987,0.46222091,4502.9,4502.8,1.37858431]
[1759522340879,0.77772091,4502.9,4502.8,1.37858431]
[1759522342687,3.2078,4504.2,4503.5,0.1306]
[1759522342882,3.2078,4504.7,4503.7,0.3377]
[1759522343080,0.3155,4503.7,4503.2,0.3377]
[1759522343388,0.4383,4503.3,4503.2,0.5424]
[1759522343690,0.44100684,4503.3,4503.2,0.973928]
[1759522344195,0.00270684,4503.3,4503.2,3.957728]
[1759522344387,0.22200684,4503.3,4503.2,4.181728]
[1759522345481,0.44100684,4503.3,4503.2,4.181728]
[1759522347292,0.44100684,4503.3,4503.2,3.957728]
[1759522347593,0.44100684,4503.3,4503.2,4.181728]
[1759522347788,0.00270684,4503.3,4503.2,4.581158]
[1759522347992,0.00270684,4503.3,4503.2,4.181728]
[1759522348690,0.44310684,4503.3,4503.2,4.181728]
[1759522351287,0.84252684,4503.3,4503.2,4.180728]
[1759522351595,1.15702684,4503.3,4503.2,4.180728]
[1759522351789,0.75760684,4503.3,4503.2,4.180728]
[1759522351995,0.4164,4504.8,4504.7,0.7345]
[1759522352295,0.2107,4504.8,4504.7,0.9575]
[1759522352497,0.4164,4504.8,4504.7,0.9575]
[1759522352889,0.41820831,4504.8,4504.7,0.9575]
[1759522353992,0.00180831,4504.8,4504.7,0.9575]
[1759522360402,0.4264,4506.1,4506.0,0.8677]
[1759522360597,0.742,4506.1,4506.0,1.0907]
[1759522360903,1.14117,4506.1,4506.0,1.0907]
[1759522361104,0.4264,4506.1,4506.0,1.0907]
[1759522361299,0.4290244,4506.1,4506.0,1.0907]
[1759522362806,0.4290244,4506.1,4506.0,0.8677]
[1759522363105,0.0126244,4506.1,4506.0,1.0907]
[1759522363299,0.2233244,4506.1,4506.0,1.0907]
[1759522364003,0.7446244,4506.1,4506.0,0.5304]
[1759522364202,0.7446244,4506.1,4506.0,0.7534]
[1759522365306,0.7446244,4506.1,4506.0,0.8866]
[1759522365503,0.7446244,4506.1,4506.0,0.7534]
[1759522365808,1.13126,4505.1,4505.0,0.2052]
[1759522365996,0.4164,4505.1,4505.0,0.7655]
[1759522366203,0.732,4505.1,4505.0,0.9575]
[1759522366402,0.732,4505.1,4505.0,0.5482]
[1759522366797,0.732,4505.1,4505.0,0.3252]
[1759522367203,0.81571,4504.6,4504.5,4.0755]
[1759522367404,0.81571,4504.6,4504.5,4.2985]
[1759522368506,0.39928,4505.0,4504.6,0.3252]
[1759522368710,0.60997,4505.0,4504.9,0.7345]
[1759522369407,0.62584549,4505.0,4504.9,0.7345]
[1759522369605,0.62584549,4505.0,4504.9,0.9575]
[1759522369807,0.01587549,4505.0,4504.9,0.9575]
[1759522370210,0.43227549,4505.0,4504.9,0.9575]
[1759522370513,0.01587549,4505.0,4504.9,0.9575]
[1759522370706,0.22657549,4505.0,4504.9,0.9575]
[1759522371610,0.01587549,4505.0,4504.9,0.9575]
[1759522372510,0.22657549,4505.0,4504.9,0.9575]
[1759522373912,0.62584549,4505.0,4504.9,0.9575]
[1759522374213,1.14714549,4505.0,4504.9,0.5304]
[1759522374414,1.14714549,4505.0,4504.9,0.3252]
[1759522374613,0.83154549,4505.0,4504.9,0.7345]
[1759522375910,0.81571,4504.6,4504.5,3.5462]
[1759522376105,0.81571,4504.6,4504.5,3.7692]
[1759522376317,0.81571,4504.6,4504.5,3.9733]
[1759522376512,0.01587549,4504.6,4504.5,4.2985]
[1759522377115,0.41518549,4504.6,4504.5,4.2985]
[1759522377614,0.62588549,4504.6,4504.5,4.2985]
[1759522378012,0.22657549,4504.6,4504.5,4.2985]
[1759522378215,0.01587549,4504.6,4504.5,4.2985]
[1759522378814,0.41518549,4504.6,4504.5,4.2985]
[1759522381112,0.01587549,4504.6,4504.5,4.2985]
[1759522385919,0.01587549,4504.6,4504.5,4.69782]
[1759522386321,0.01587549,4504.6,4504.5,4.2985]
[1759522386525,0.01587549,4504.6,4504.5,4.69782]
[1759522388524,0.01587549,4504.6,4504.5,4.2985]
[1759522389527,0.01587549,4504.6,4504.5,4.69782]
[1759522391933,0.01587549,4504.6,4504.5,4.2985]
[1759522392133,0.01587549,4504.6,4504.5,4.69782]
[1759522392833,0.01587549,4504.6,4504.5,4.2985]
[1759522393328,0.01587549,4504.6,4504.5,4.69782]
[1759522394331,0.01587549,4504.6,4504.5,6.26978143]
[1759522394734,0.01587549,4504.6,4504.5,5.87046143]
[1759522395432,0.01587549,4504.6,4504.5,4.69782]
[1759522396132,0.01587549,4504.6,4504.5,4.2985]
[1759522396526,6.16258549,4504.6,4504.5,4.0755]
[1759522396727,0.39936,4504.0,4503.9,4.80338037]
[1759522396926,0.3994,4503.6,4503.5,1.59558037]
[1759522397123,1.1468,4503.6,4503.5,0.3136]
[1759522397327,0.8438,4503.5,4503.4,0.223]
[1759522397527,0.85967549,4503.5,4503.4,0.223]
[1759522397731,0.76327549,4503.5,4503.4,0.223]
[1759522398125,0.7474,4503.3,4503.2,0.002228]
[1759522398532,0.76327549,4503.3,4503.2,0.002228]
[1759522400229,0.4345,4502.7,4502.6,0.3136]
[1759522400533,1.14692,4502.2,4502.1,0.5334]
[1759522400837,0.4345,4502.2,4502.1,0.7379]
[1759522401331,0.43620968,4502.2,4502.1,0.73991655]
[1759522401531,0.00170968,4502.2,4502.1,0.73991655]
[1759522401734,0.01758517,4502.2,4502.1,0.73991655]
[1759522405645,1.16450517,4502.2,4502.1,0.44815436]
[1759522406342,0.23398517,4502.2,4502.1,0.65265436]
[1759522406545,0.76498517,4502.2,4502.1,0.65265436]
[1759522406841,0.76498517,4502.2,4502.1,0.65520999]
[1759522407343,0.45208517,4502.2,4502.1,0.65520999]
[1759522407542,0.78688517,4502.2,4502.1,0.65520999]
[1759522407743,0.78688517,4502.2,4502.1,0.45070999]
[1759522409038,0.45208517,4502.2,4502.1,0.66580999]
[1759522409242,0.01758517,4502.2,4502.1,0.66580999]
[1759522411440,0.01758517,4502.2,4502.1,0.88880999]
[1759522412639,0.01758517,4502.2,4502.1,5.88880999]
[1759522413043,0.61581,4503.5,4503.4,0.7433]
[1759522413245,0.2164,4503.5,4503.4,0.7433]
[1759522413951,0.21862478,4503.5,4503.4,0.7433]
[1759522416547,0.00222478,4503.5,4503.4,0.7433]
[1759522416747,0.21862478,4503.5,4503.4,0.7433]
[1759522418363,0.61802478,4503.5,4503.4,0.7433]
[1759522419043,0.82492478,4503.5,4503.4,0.7433]
[1759522419248,0.61584,4503.1,4503.0,1.0977]
[1759522420751,0.61584,4503.1,4503.0,0.9663]
[1759522420752,1.14194,4503.1,4503.0,0.9663]
[1759522420951,1.14194,4503.1,4503.0,0.7579]
[1759522421150,1.14194,4503.1,4503.0,0.5349]
[1759522424360,0.99863,4503.0,4502.6,0.3297]
[1759522424553,1.14198,4502.7,4502.6,0.5349]
[1759522425955,1.14198,4502.6,4502.5,0.223]
[1759522426157,0.3995,4502.4,4502.3,3.413]
[1759522426459,1.142,4502.4,4502.3,3.7427]
[1759522427260,1.142,4502.4,4502.3,3.9511]
[1759522427261,0.6159,4502.4,4502.3,3.9511]
[1759522427757,3.2078,4503.1,4502.3,3.9511]
[1759522427957,1.14198,4502.7,4502.6,0.7433]
[1759522430753,1.74122,4502.7,4502.1,0.00255563]
[1759522430958,0.61592,4502.2,4502.1,0.74585563]
[1759522433960,0.3192,4502.5,4502.1,0.74585563]
[1759522434266,0.39951,4502.3,4502.2,0.7433]
[1759522435662,3.2078,4502.7,4502.2,0.7433]
[1759522435865,0.223,4503.0,4502.6,0.7433]
[1759522436055,0.61588,4502.7,4502.6,0.7433]
[1759522436556,0.39948,4502.7,4502.6,0.7433]
[1759522436961,0.61588,4502.7,4502.6,0.7433]
[1759522437166,1.14198,4502.7,4502.6,0.7433]
[1759522437560,0.82278,4502.7,4502.6,0.7433]
[1759522438064,4.14277,4503.9,4503.8,0.5349]
[1759522438368,3.2078,4504.5,4504.0,0.1314]
[1759522438661,3.6311,4504.5,4504.4,0.7433]
[1759522438855,0.4233,4504.5,4504.4,0.7433]
[1759522439162,0.00166557,4504.5,4504.4,0.7433]
[1759522439762,0.21806557,4504.5,4504.4,0.7433]
[1759522440470,0.00166557,4504.5,4504.4,0.7433]
[1759522441268,0.21806557,4504.5,4504.4,0.7433]
[1759522441472,0.7425,4504.1,4504.0,0.5349]
[1759522441769,1.14185,4504.1,4504.0,0.5349]
[1759522441965,0.00166557,4504.5,4504.4,0.7433]
[1759522442359,0.21806557,4504.5,4504.4,0.7433]
[1759522442759,0.73566557,4504.5,4504.4,0.5366]
[1759522442961,0.42686557,4504.5,4504.4,0.7521]
[1759522443569,0.00166557,4504.5,4504.4,0.7521]
[1759522444964,0.42236557,4504.5,4504.4,0.7521]
[1759522445570,0.00166557,4504.5,4504.4,0.7521]
[1759522448273,0.00166557,4504.5,4504.4,0.9751]
[1759522448573,0.00166557,4504.5,4504.4,1.37442]
[1759522449068,0.00166557,4504.5,4504.4,6.37442]
[1759522449674,0.00166557,4504.5,4504.4,5.9751]
[1759522452173,0.39926,4505.1,4504.4,5.9751]
[1759522452174,1.13867,4506.1,4506.0,0.8642]
[1759522452365,1.13867,4506.1,4506.0,0.5177]
[1759522452570,0.8199,4505.8,4505.7,0.223]
[1759522452874,1.1287,4505.8,4505.7,0.223]
[1759522453076,0.42263876,4505.8,4505.7,0.9589358]
[1759522453373,0.21383876,4505.8,4505.7,0.7359358]
[1759522453570,0.00193876,4505.8,4505.7,0.7359358]
[1759522456871,0.21383876,4505.8,4505.7,0.7359358]
[1759522457576,0.21383876,4505.8,4505.7,0.0027358]
[1759522457577,5.73143876,4505.8,4505.7,0.0027358]
[1759522459384,5.73143876,4505.8,4505.7,0.5204358]
[1759522459879,0.42263876,4505.8,4505.7,0.7359358]
[1759522460281,0.21383876,4505.8,4505.7,0.7359358]
[1759522463589,0.61303876,4505.8,4505.7,0.7359358]
[1759522464480,0.21383876,4505.8,4505.7,0.7359358]
[1759522464880,0.61303876,4505.8,4505.7,0.7359358]
[1759522466286,0.21383876,4505.8,4505.7,0.7359358]
[1759522466888,0.00193876,4505.8,4505.7,0.7359358]
[1759522467280,0.40113876,4505.8,4505.7,0.7359358]
[1759522468082,0.00193876,4505.8,4505.7,0.7359358]
[1759522471183,0.00193876,4505.8,4505.7,0.9589358]
[1759522471391,0.00193876,4505.8,4505.7,1.3581458]
[1759522471983,0.00193876,4505.8,4505.7,1.6811349]
[1759522472183,0.00193876,4505.8,4505.7,1.2819249]
[1759522472581,0.00193876,4505.8,4505.7,0.9589358]
[1759522472788,1.13113876,4505.8,4505.7,0.7359358]
[1759522473188,1.13113876,4505.8,4505.7,0.5430358]
[1759522473887,1.13113876,4505.8,4505.7,0.7687358]
[1759522473888,0.20703876,4505.8,4505.7,0.7687358]
[1759522474088,0.60623876,4505.8,4505.7,0.7687358]
[1759522479493,0.40113876,4505.8,4505.7,0.7687358]
[1759522481392,0.00193876,4505.8,4505.7,0.7687358]
[1759522481790,0.40113876,4505.8,4505.7,0.7687358]
[1759522482499,0.00193876,4505.8,4505.7,0.7687358]
[1759522485397,0.00193876,4505.8,4505.7,1.1679458]
[1759522485596,0.01,4506.1,4505.7,1.1679458]
[1759522485597,0.01,4506.1,4506.0,0.8945]
[1759522485794,0.74,4506.1,4506.0,1.1175]
[1759522486099,1.13917,4506.1,4506.0,1.1175]
[1759522486696,1.14082898,4506.1,4506.0,0.8945]
[1759522486901,1.14082898,4506.1,4506.0,1.1175]
[1759522487197,0.82592898,4506.1,4506.0,1.1175]
[1759522491102,1.14082898,4506.1,4506.0,1.1175]
[1759522492396,0.61592898,4506.1,4506.0,1.1175]
[1759522493108,0.41082898,4506.1,4506.0,1.1175]
[1759522494906,0.01165898,4506.1,4506.0,1.1175]
[1759522495204,0.61592898,4506.1,4506.0,1.1175]
[1759522495599,1.14082898,4506.1,4506.0,1.1175]
[1759522497007,1.14082898,4506.1,4506.0,0.8945]
[1759522497211,1.14082898,4506.1,4506.0,1.1175]
[1759522497606,1.14082898,4506.1,4506.0,0.5403]
[1759522497804,1.1292,4505.8,4505.7,0.5430358]
[1759522498109,1.1292,4505.8,4505.7,0.7660358]
[1759522498309,1.00961898,4506.1,4505.7,0.9917358]
[1759522498310,0.01165898,4506.1,4505.7,0.9917358]
[1759522498608,1.14082898,4506.1,4506.0,0.8945]
[1759522500397,0.82592898,4506.1,4506.0,0.8945]
[1759522500808,0.42675898,4506.1,4506.0,0.8945]
[1759522501209,0.82592898,4506.1,4506.0,0.8945]
[1759522501505,1.14082898,4506.1,4506.0,0.8945]
[1759522502200,0.01165898,4506.1,4506.0,0.8945]
[1759522502402,0.01165898,4506.1,4506.0,1.29368]
[1759522502802,3.2078,4506.7,4506.6,0.757]
[1759522503111,3.81217,4507.3,4507.2,0.757]
[1759522503505,4.34027,4507.3,4507.2,0.757]
[1759522503705,4.34183076,4507.3,4507.2,0.757]
[1759522504411,4.35772341,4507.3,4507.2,0.757]
[1759522505614,4.37361606,4507.3,4507.2,0.757]
[1759522505816,4.37361606,4507.3,4507.2,0.5385]
[1759522506010,0.39912,4506.7,4506.0,4.92258545]
[1759522506205,0.2053,4506.1,4506.0,3.7773]
[1759522506409,0.2053,4506.1,4506.0,4.0003]
[1759522506615,0.25297795,4506.1,4506.0,4.3163]
[1759522507015,0.04767795,4506.1,4506.0,4.3163]
[1759522507412,0.0635706,4506.1,4506.0,4.3163]
[1759522507809,0.4903706,4506.1,4506.0,4.0933]
[1759522508005,0.7969706,4506.1,4506.0,0.5385]
[1759522508211,0.7969706,4506.1,4506.0,0.316]
[1759522508411,0.81286325,4506.1,4506.0,0.316]
[1759522508613,0.7334,4505.9,4505.8,0.223]
[1759522509116,0.7334,4505.9,4505.8,0.539]
[1759522509314,0.82725573,4505.9,4505.8,0.539]
[1759522509510,0.82725573,4505.9,4505.8,0.7615]
[1759522510819,0.82725573,4505.9,4505.8,0.98]
[1759522511816,0.09385573,4505.9,4505.8,0.98]
[1759522512714,0.49304573,4505.9,4505.8,0.98]
[1759522514223,1.22644573,4505.9,4505.8,0.98]
[1759522516024,1.22644573,4505.9,4505.8,0.7615]
[1759522516323,1.22644573,4505.9,4505.8,0.539]
[1759522517218,0.52065573,4505.9,4505.8,0.98]
[1759522517522,0.52384453,4505.9,4505.8,0.98]
[1759522517820,0.92303453,4505.9,4505.8,0.98]
[1759522518018,0.92622333,4505.9,4505.8,0.98]
[1759522518515,0.92122333,4505.9,4505.8,0.98]
[1759522518826,1.22782333,4505.9,4505.8,0.98]
[1759522520223,1.22782333,4505.9,4505.8,0.7615]
[1759522520419,1.22782333,4505.9,4505.7,0.0027358]
[1759522520420,1.1326,4505.8,4505.7,0.0027358]
[1759522520920,0.826,4505.8,4505.7,0.7597358]
[1759522521122,0.10023333,4505.8,4505.7,0.7597358]
[1759522522213,0.30553333,4505.8,4505.7,0.7597358]
[1759522522420,0.52703333,4505.8,4505.7,0.7597358]
[1759522522621,0.83363333,4505.8,4505.7,0.7597358]
[1759522523819,0.83363333,4505.8,4505.7,0.0027358]
[1759522526325,4.04143333,4505.8,4505.7,0.0027358]
[1759522526523,4.44063333,4505.8,4505.7,0.0027358]
[1759522527626,4.44063333,4505.8,4505.7,0.7452358]
[1759522528020,4.13403333,4505.8,4505.7,0.7452358]
[1759522528217,3.73483333,4505.8,4505.7,0.7452358]
[1759522528423,0.30553333,4505.8,4505.7,0.7452358]
[1759522528617,0.10023333,4505.8,4505.7,0.7452358]
[1759522529123,0.10023333,4505.8,4505.7,5.7452358]
[1759522529124,0.0461706,4505.8,4505.7,5.7452358]
[1759522529329,0.0461706,4505.8,4505.7,8.9530358]
[1759522530025,0.39911,4506.8,4506.7,0.4232]
[1759522530222,0.39911,4506.8,4506.7,0.7425]
[1759522531731,3.60691,4506.9,4506.8,0.3193]
[1759522531922,3.2078,4506.9,4506.8,0.7425]
[1759522533033,0.3991,4507.0,4506.8,0.4232]
[1759522533331,3.2078,4507.5,4507.2,0.7385]
[1759522533635,0.40063076,4507.3,4507.2,0.7385]
[1759522533831,0.61073076,4507.3,4507.2,0.7385]
[1759522535430,0.40063076,4507.3,4507.2,0.7385]
[1759522538339,0.61073076,4507.3,4507.2,0.7385]
[1759522539136,0.83633076,4507.3,4507.2,0.7385]
[1759522539740,1.17463076,4507.3,4507.2,0.7385]
[1759522540934,0.00156076,4507.3,4507.2,0.7385]
[1759522541844,0.00156076,4507.3,4507.2,5.7385]
[1759522542341,0.00156076,4507.3,4507.2,0.7385]
[1759522543143,0.39899,4508.3,4508.1,0.3157]
[1759522543346,0.3383,4508.9,4508.2,0.9615]
[1759522543545,0.39896,4508.5,4508.4,0.3157]
[1759522543737,0.39896,4508.5,4508.4,0.7385]
[1759522544238,0.61166305,4508.5,4508.4,0.7385]
[1759522544444,0.83726305,4508.5,4508.4,0.7385]
[1759522545244,0.61166305,4508.5,4508.4,0.7385]
[1759522547547,0.00260305,4508.5,4508.4,0.7385]
[1759522548143,0.00260305,4508.5,4508.4,5.7385]
[1759522554352,0.00260305,4508.5,4508.4,5.9615]
[1759522555747,0.21270305,4508.5,4508.4,0.9615]
[1759522556255,0.00260305,4508.5,4508.4,0.9615]
[1759522556657,0.21270305,4508.5,4508.4,0.9615]
[1759522556954,0.77660305,4508.5,4508.4,0.7385]
[1759522557151,0.77660305,4508.5,4508.4,0.9615]
[1759522557860,0.43830305,4508.5,4508.4,0.9615]
[1759522559051,0.77660305,4508.5,4508.4,0.9615]
[1759522560055,0.77660305,4508.5,4508.4,0.7451]
[1759522560460,0.77660305,4508.5,4508.4,0.9615]
[1759522561158,0.2101,4507.7,4507.6,3.4142]
[1759522561356,1.17303,4507.7,4507.6,3.6306]
[1759522561557,0.1232,4508.0,4507.6,3.8536]
[1759522561857,0.3383,4507.7,4507.6,3.8536]
[1759522563058,0.5484,4507.7,4507.6,3.8536]
[1759522563258,0.5484,4507.7,4507.6,4.1718]
[1759522564453,0.7658,4507.7,4507.6,0.4294]
[1759522564856,0.7658,4507.7,4507.6,0.6355]
[1759522565864,0.7658,4507.7,4507.6,0.9537]
[1759522566167,0.3383,4507.7,4507.6,1.35274]
[1759522566366,0.39903,4507.7,4507.6,1.35274]
[1759522566753,0.39903,4507.7,4507.6,0.9537]
[1759522567763,0.92083,4507.7,4507.6,0.9537]
[1759522568271,1.13823,4507.7,4507.6,0.6355]
[1759522569966,0.7392,4507.7,4507.3,0.3182]
[1759522570166,1.13828,4507.2,4507.1,3.2078]
[1759522570367,1.13832,4506.7,4506.6,2.00658545]
[1759522570566,1.13832,4506.7,4506.6,0.6433]
[1759522570963,1.13832,4506.7,4506.6,0.223]
[1759522571470,1.13832,4506.7,4506.6,0.4372]
[1759522573974,1.13832,4506.7,4506.6,0.223]
[1759522575370,0.3992,4505.8,4505.7,34.6037358]
[1759522575670,0.7155,4505.8,4505.7,34.8267358]
[1759522577068,0.7155,4505.8,4505.7,35.1449358]
[1759522579072,3.3431,4506.5,4506.4,0.7385]
[1759522579073,3.2078,4506.5,4506.4,0.7385]
[1759522579273,0.71544,4506.6,4506.5,0.7385]
[1759522579569,0.92094,4506.6,4506.5,0.7385]
[1759522579969,1.13834,4506.6,4506.5,0.7385]
[1759522580468,0.7392,4506.6,4506.5,0.7385]
[1759522580671,0.3163,4506.9,4506.8,1.13761]
[1759522580975,0.3991,4507.0,4506.8,0.9615]
[1759522581176,0.7154,4507.0,4506.9,0.7385]
[1759522581774,0.3163,4507.0,4506.9,0.7385]
[1759522581973,0.39906,4507.4,4507.2,0.4203]
[1759522582171,0.39906,4507.4,4506.9,3.2078]
[1759522582172,3.5241,4507.7,4507.5,0.3182]
[1759522582474,3.92313,4507.7,4507.6,0.9615]
[1759522582866,3.7296,4507.7,4507.6,0.9615]
[1759522584876,3.947,4507.7,4507.6,0.6433]
[1759522585073,3.3431,4509.5,4508.4,0.1578]
[1759522585281,3.3431,4509.5,4508.4,0.4301]
[1759522585479,0.53422,4509.0,4508.4,0.3808]
[1759522585675,0.65970305,4508.5,4508.4,0.3808]
[1759522585976,0.00260305,4508.5,4508.4,0.7011871]
[1759522586274,0.00260305,4508.5,4508.4,5.7011871]
[1759522586573,3.05e-06,4508.5,4508.4,7.4682046]
[1759522586770,0.3163,4509.3,4509.2,0.5567]
[1759522586976,0.4522,4509.5,4509.4,0.1578]
[1759522587572,0.4522,4509.5,4509.4,0.2074]
[1759522587771,3.2078,4510.7,4509.4,5.20913882]
[1759522587976,0.5693,4510.5,4509.6,3.2078]
[1759522588168,0.434,4509.7,4509.6,3.6283]
[1759522588367,0.1353,4510.5,4509.9,0.4205]
[1759522588368,0.39879,4510.4,4509.9,0.4205]
[1759522588570,0.2155,4510.1,4510.0,0.6435]
[1759522588771,0.434,4510.1,4510.0,0.6435]
[1759522589073,0.00208072,4510.1,4510.0,1.37533]
[1759522589272,0.00208072,4510.1,4510.0,1.44193]
[1759522589580,0.00208072,4510.1,4510.0,1.0431]
[1759522592172,0.31748072,4510.1,4510.0,0.7535]
[1759522592366,0.31748072,4510.1,4510.0,0.9765]
[1759522593478,0.00208072,4510.1,4510.0,0.9765]
[1759522594376,0.99681,4511.3,4510.0,0.9765]
[1759522594377,0.936,4511.5,4511.4,0.2213]
[1759522594577,0.936,4511.5,4511.4,0.223]
[1759522595280,0.93859268,4511.5,4511.4,0.4443]
[1759522595481,0.53989268,4511.5,4511.4,0.9679]
[1759522595681,0.53989268,4511.5,4511.4,0.6518]
[1759522596476,0.85529268,4511.5,4511.4,0.6518]
[1759522597381,0.85529268,4511.5,4511.4,0.4443]
[1759522597681,1.12783,4511.1,4511.0,3.2078]
[1759522597887,1.12783,4511.1,4511.0,3.91831174]
[1759522598186,1.12783,4511.1,4511.0,3.6521]
[1759522598387,0.4137,4510.6,4510.5,3.4291]
[1759522598587,0.7291,4510.6,4510.5,3.8596]
[1759522598883,0.3154,4510.9,4510.7,0.2213]
[1759522599088,0.3154,4511.4,4510.8,0.6518]
[1759522599287,1.1278,4511.4,4511.3,0.4288]
[1759522599494,1.1278,4511.4,4511.3,0.9679]
[1759522599880,0.9187,4511.4,4511.3,0.9679]
[1759522600486,1.1278,4511.4,4511.3,0.9679]
[1759522601992,0.7291,4511.4,4511.3,0.9679]
[1759522602292,0.52,4511.4,4511.3,0.9679]
[1759522602488,0.00259268,4511.5,4511.4,0.7449]
[1759522602689,0.52259268,4511.5,4511.4,0.9679]
[1759522604094,0.31799268,4511.5,4511.4,0.9679]
[1759522604991,0.39863,4512.3,4512.2,0.7449]
[1759522605188,0.52,4512.3,4512.2,0.9679]
[1759522605385,0.39862,4512.4,4512.3,0.7449]
[1759522605584,0.52,4512.7,4512.6,0.7449]
[1759522605789,1.12769,4512.7,4512.6,0.6518]
[1759522605990,1.12989198,4512.7,4512.6,0.65372839]
[1759522608389,1.12989198,4512.7,4512.6,0.44622839]
[1759522608596,6.12989198,4512.7,4512.6,0.00192839]
[1759522609394,0.2046,4511.6,4511.5,3.4291]
[1759522609698,1.12779,4511.6,4511.5,3.8596]
[1759522610288,1.12779,4511.6,4511.5,4.1757]
[1759522610598,1.12779,4511.6,4511.5,4.1780214]
[1759522611397,1.12779,4511.6,4511.5,3.8619214]
[1759522611697,1.12779,4511.6,4511.5,4.1780214]
[1759522611896,0.39866,4512.0,4511.6,0.3161]
[1759522612094,1.12773,4512.3,4512.2,0.2213]
[1759522612294,1.12773,4512.3,4512.2,0.6518]
[1759522612695,1.12773,4512.3,4512.2,0.9679]
[1759522613490,0.52,4512.6,4512.5,0.7449]
[1759522613699,0.52,4512.6,4512.5,4.1757]
[1759522613904,0.7291,4512.6,4512.5,0.223]
[1759522614290,0.7291,4512.6,4512.1,0.3161]
[1759522614494,1.12773,4512.2,4512.1,0.2213]
[1759522614798,1.12773,4512.2,4512.1,0.4443]
[1759522615795,0.71403,4512.2,4512.1,0.9679]
[1759522616390,0.125,4512.5,4512.1,0.9679]
[1759522616589,0.91862,4512.4,4512.3,0.7449]
[1759522616801,1.12772,4512.4,4512.3,0.6518]
[1759522617001,0.3154,4512.4,4512.3,0.9679]
[1759522618097,0.00220198,4512.7,4512.4,0.4288]
[1759522618297,0.00220198,4512.7,4512.6,0.7449]
[1759522618493,0.00220198,4512.7,4512.6,0.9679]
[1759522619193,0.31760198,4512.7,4512.6,0.9679]
[1759522621100,0.71619198,4512.7,4512.6,0.9679]
[1759522621693,0.92079198,4512.7,4512.6,0.9679]
[1759522621891,0.52220198,4512.7,4512.6,1.3665]
[1759522622298,0.40079198,4512.7,4512.6,1.3665]
[1759522622600,0.00220198,4512.7,4512.6,1.3665]
[1759522622802,0.40079198,4512.7,4512.6,1.3665]
[1759522623096,0.40079198,4512.7,4512.6,0.9679]
[1759522623293,0.3986,4512.6,4512.5,3.2078]
[1759522623499,1.1474,4512.6,4512.5,3.4308]
[1759522624001,1.27945,4512.0,4511.9,3.2078]
[1759522624302,1.27945,4512.0,4511.9,3.4308]
[1759522624501,1.27945,4512.0,4511.9,3.6563]
[1759522625392,0.3116,4512.4,4511.9,4.1914]